[Event "Titled Tuesday Blitz August 08 Late 2023"]
[White "Muhammad Shahzeb"]
[Black "reevecanada"]
[WhiteFideId "7804806"]
[WhiteElo "2405"]
[BlackElo "2548"]
[Result "0-1"]
[Round "10"]
[TimeControl "180+1"]
[Date "2023.08.08"]
[WhiteClock "0:00:00"]
[BlackClock "0:01:13"]
[Board "52"]

1. e4 {[%clk 0:02:59]}  c5 {[%clk 0:02:59]} 2. Nc3 {[%clk 0:02:57]}  d6 {[%clk 0:02:58]} 3. f4 {[%clk 0:02:58]}  Nc6 {[%clk 0:02:58]} 4. Nf3 {[%clk 0:02:59]}  g6 {[%clk 0:02:57]} 5. Bb5 {[%clk 0:02:59]}  Bg7 {[%clk 0:02:57]} 6. Bxc6+ {[%clk 0:02:58]}  bxc6 {[%clk 0:02:57]} 7. d3 {[%clk 0:02:57]}  d5 {[%clk 0:02:54]} 8. O-O {[%clk 0:02:52]}  e6 {[%clk 0:02:52]} 9. Qe1 {[%clk 0:02:47]}  Ne7 {[%clk 0:02:50]} 10. f5 {[%clk 0:02:46]}  gxf5 {[%clk 0:02:46]} 11. Qg3 {[%clk 0:02:30]}  Kf8 {[%clk 0:02:35]} 12. Bf4 {[%clk 0:02:15]}  Ng6 {[%clk 0:02:23]} 13. Bd6+ {[%clk 0:02:13]}  Kg8 {[%clk 0:02:22]} 14. exf5 {[%clk 0:02:12]}  exf5 {[%clk 0:02:21]} 15. Bxc5 {[%clk 0:02:06]}  f4 {[%clk 0:02:18]} 16. Qf2 {[%clk 0:02:03]}  h6 {[%clk 0:02:14]} 17. Bd4 {[%clk 0:02:03]}  Bg4 {[%clk 0:02:11]} 18. Bxg7 {[%clk 0:01:50]}  Kxg7 {[%clk 0:02:10]} 19. Nd4 {[%clk 0:01:50]}  Qf6 {[%clk 0:01:53]} 20. h3 {[%clk 0:01:43]}  Bd7 {[%clk 0:01:47]} 21. Nb3 {[%clk 0:01:38]}  Rhg8 {[%clk 0:01:43]} 22. Nc5 {[%clk 0:01:25]}  Bc8 {[%clk 0:01:41]} 23. Kh1 {[%clk 0:01:17]}  Kh7 {[%clk 0:01:39]} 24. Rae1 {[%clk 0:00:56]}  Qg5 {[%clk 0:01:35]} 25. Re2 {[%clk 0:00:35]}  Rb8 {[%clk 0:01:30]} 26. b3 {[%clk 0:00:31]}  a5 {[%clk 0:01:29]} 27. a4 {[%clk 0:00:30]}  Rg7 {[%clk 0:01:27]} 28. d4 {[%clk 0:00:21]}  Bf5 {[%clk 0:01:24]} 29. Rfe1 {[%clk 0:00:10]}  Rbg8 {[%clk 0:01:23]} 30. Rg1 {[%clk 0:00:06]}  Nh4 {[%clk 0:01:21]} 31. Rd2 {[%clk 0:00:04]}  Qg3 {[%clk 0:01:15]} 32. Qxg3 {[%clk 0:00:03]}  Rxg3 {[%clk 0:01:14]} 33. Ne2 {[%clk 0:00:03]}  Rxg2 {[%clk 0:01:13]} 34. Rxg2 {[%clk 0:00:00]}  Rxg2 {[%clk 0:01:13]} 0-1


[Site "https://www.chess.com"]

[Event "Titled Tuesday Blitz August 08 Late 2023"]
[White "Dwilewicz, Katarzyna"]
[Black "Papayan, Oleg"]
[WhiteFideId "1148486"]
[BlackFideId "4193911"]
[WhiteElo "2396"]
[BlackElo "2542"]
[Result "1-0"]
[Round "10"]
[TimeControl "180+1"]
[Date "2023.08.08"]
[WhiteClock "0:00:14"]
[BlackClock "0:00:23"]
[Board "53"]

1. e4 {[%clk 0:03:00]}  d5 {[%clk 0:03:00]} 2. exd5 {[%clk 0:03:00]}  Qxd5 {[%clk 0:03:01]} 3. Nf3 {[%clk 0:03:00]}  Qd8 {[%clk 0:03:00]} 4. d4 {[%clk 0:03:01]}  c6 {[%clk 0:03:01]} 5. Nc3 {[%clk 0:02:58]}  Bf5 {[%clk 0:03:01]} 6. Bc4 {[%clk 0:02:58]}  e6 {[%clk 0:03:02]} 7. Bf4 {[%clk 0:02:53]}  Nf6 {[%clk 0:03:01]} 8. Qd2 {[%clk 0:02:52]}  Bb4 {[%clk 0:03:01]} 9. Bd3 {[%clk 0:02:49]}  Bxd3 {[%clk 0:02:59]} 10. Qxd3 {[%clk 0:02:49]}  Nbd7 {[%clk 0:02:57]} 11. O-O-O {[%clk 0:02:47]}  Qa5 {[%clk 0:02:56]} 12. Bd2 {[%clk 0:02:30]}  Bxc3 {[%clk 0:02:52]} 13. Bxc3 {[%clk 0:02:28]}  Qxa2 {[%clk 0:02:53]} 14. b3 {[%clk 0:02:15]}  Nd5 {[%clk 0:02:12]} 15. Bb2 {[%clk 0:02:11]}  Nb4 {[%clk 0:02:08]} 16. Qc3 {[%clk 0:02:08]}  Qa5 {[%clk 0:02:00]} 17. Kd2 {[%clk 0:01:58]}  O-O-O {[%clk 0:01:53]} 18. Ra1 {[%clk 0:01:58]}  Qb6 {[%clk 0:01:47]} 19. Qc4 {[%clk 0:01:42]}  Nf6 {[%clk 0:01:21]} 20. Ke2 {[%clk 0:01:35]}  Nbd5 {[%clk 0:00:51]} 21. g3 {[%clk 0:01:30]}  a6 {[%clk 0:00:42]} 22. Ne5 {[%clk 0:01:29]}  Rhf8 {[%clk 0:00:39]} 23. Ba3 {[%clk 0:01:21]}  Ne4 {[%clk 0:00:27]} 24. Bxf8 {[%clk 0:01:15]}  Rxf8 {[%clk 0:00:28]} 25. Qd3 {[%clk 0:00:55]}  f6 {[%clk 0:00:23]} 26. Nc4 {[%clk 0:00:52]}  Qc7 {[%clk 0:00:23]} 27. f3 {[%clk 0:00:48]}  Nec3+ {[%clk 0:00:22]} 28. Kf2 {[%clk 0:00:47]}  g6 {[%clk 0:00:18]} 29. Ne3 {[%clk 0:00:40]}  e5 {[%clk 0:00:16]} 30. Nxd5 {[%clk 0:00:39]}  Nxd5 {[%clk 0:00:17]} 31. Rhe1 {[%clk 0:00:36]}  Rd8 {[%clk 0:00:09]} 32. dxe5 {[%clk 0:00:26]}  fxe5 {[%clk 0:00:09]} 33. Qe4 {[%clk 0:00:26]}  Qb6+ {[%clk 0:00:09]} 34. Kg2 {[%clk 0:00:23]}  Re8 {[%clk 0:00:06]} 35. c4 {[%clk 0:00:20]}  Nf6 {[%clk 0:00:05]} 36. Qe3 {[%clk 0:00:20]}  Qc7 {[%clk 0:00:04]} 37. b4 {[%clk 0:00:19]}  e4 {[%clk 0:00:04]} 38. fxe4 {[%clk 0:00:18]}  Rxe4 {[%clk 0:00:05]} 39. Qf3 {[%clk 0:00:18]}  Qe5 {[%clk 0:00:02]} 40. Rxe4 {[%clk 0:00:18]}  Nxe4 {[%clk 0:00:02]} 41. Re1 {[%clk 0:00:17]}  Qb2+ {[%clk 0:00:03]} 42. Re2 {[%clk 0:00:17]}  Qxb4 {[%clk 0:00:01]} 43. Qxe4 {[%clk 0:00:18]}  a5 {[%clk 0:00:02]} 44. Qe8+ {[%clk 0:00:18]}  Kc7 {[%clk 0:00:03]} 45. Qe7+ {[%clk 0:00:18]}  Qxe7 {[%clk 0:00:03]} 46. Rxe7+ {[%clk 0:00:19]}  Kb6 {[%clk 0:00:04]} 47. c5+ {[%clk 0:00:18]}  Kxc5 {[%clk 0:00:04]} 48. Rxb7 {[%clk 0:00:19]}  a4 {[%clk 0:00:05]} 49. Rxh7 {[%clk 0:00:20]}  a3 {[%clk 0:00:05]} 50. Ra7 {[%clk 0:00:20]}  Kb4 {[%clk 0:00:06]} 51. Kf3 {[%clk 0:00:17]}  c5 {[%clk 0:00:06]} 52. Ke3 {[%clk 0:00:17]}  c4 {[%clk 0:00:06]} 53. Kd2 {[%clk 0:00:17]}  Kb3 {[%clk 0:00:06]} 54. Rb7+ {[%clk 0:00:17]}  Ka2 {[%clk 0:00:05]} 55. Kc3 {[%clk 0:00:17]}  g5 {[%clk 0:00:04]} 56. Kxc4 {[%clk 0:00:17]}  g4 {[%clk 0:00:05]} 57. Kd4 {[%clk 0:00:11]}  Ka1 {[%clk 0:00:05]} 58. Ra7 {[%clk 0:00:10]}  a2 {[%clk 0:00:06]} 59. Rxa2+ {[%clk 0:00:10]}  Kxa2 {[%clk 0:00:06]} 60. Ke4 {[%clk 0:00:10]}  Kb3 {[%clk 0:00:07]} 61. Kf4 {[%clk 0:00:11]}  Kc4 {[%clk 0:00:08]} 62. Kxg4 {[%clk 0:00:12]}  Kc5 {[%clk 0:00:09]} 63. Kf5 {[%clk 0:00:12]}  Kd6 {[%clk 0:00:10]} 64. Kf6 {[%clk 0:00:13]}  Kd7 {[%clk 0:00:11]} 65. Kf7 {[%clk 0:00:14]}  Kd6 {[%clk 0:00:11]} 66. g4 {[%clk 0:00:13]}  Kc7 {[%clk 0:00:12]} 67. g5 {[%clk 0:00:13]}  Kd6 {[%clk 0:00:13]} 68. g6 {[%clk 0:00:14]}  Ke5 {[%clk 0:00:14]} 69. g7 {[%clk 0:00:14]}  Kf5 {[%clk 0:00:15]} 70. g8=Q {[%clk 0:00:14]}  Kf4 {[%clk 0:00:16]} 71. Qg6 {[%clk 0:00:14]}  Kf3 {[%clk 0:00:16]} 72. Kf6 {[%clk 0:00:14]}  Kf4 {[%clk 0:00:17]} 73. Qg5+ {[%clk 0:00:14]}  Kf3 {[%clk 0:00:18]} 74. h4 {[%clk 0:00:14]}  Kf2 {[%clk 0:00:19]} 75. h5 {[%clk 0:00:14]}  Kf1 {[%clk 0:00:20]} 76. h6 {[%clk 0:00:14]}  Kf2 {[%clk 0:00:21]} 77. h7 {[%clk 0:00:15]}  Kf1 {[%clk 0:00:21]} 78. h8=Q {[%clk 0:00:15]}  Kf2 {[%clk 0:00:22]} 79. Qh2+ {[%clk 0:00:15]}  Kf1 {[%clk 0:00:23]} 80. Qc1# {[%clk 0:00:14]} 1-0


[Site "https://www.chess.com"]

[Event "Titled Tuesday Blitz August 08 Late 2023"]
[White "Golubev, Mikhail"]
[Black "Chor, Kevin"]
[WhiteFideId "14100983"]
[BlackFideId "2090740"]
[WhiteElo "2606"]
[BlackElo "2513"]
[Result "1-0"]
[Round "10"]
[TimeControl "180+1"]
[Date "2023.08.08"]
[WhiteClock "0:00:06"]
[BlackClock "0:00:01"]
[Board "57"]

1. e4 {[%clk 0:03:00]}  c5 {[%clk 0:02:59]} 2. Nf3 {[%clk 0:03:00]}  Nc6 {[%clk 0:02:59]} 3. Nc3 {[%clk 0:03:00]}  g6 {[%clk 0:02:59]} 4. d4 {[%clk 0:02:58]}  cxd4 {[%clk 0:03:00]} 5. Nxd4 {[%clk 0:02:58]}  Bg7 {[%clk 0:03:00]} 6. Be3 {[%clk 0:02:58]}  Nf6 {[%clk 0:03:01]} 7. Bc4 {[%clk 0:02:58]}  O-O {[%clk 0:03:00]} 8. Bb3 {[%clk 0:02:56]}  d5 {[%clk 0:02:57]} 9. exd5 {[%clk 0:02:51]}  Na5 {[%clk 0:02:56]} 10. Qf3 {[%clk 0:02:44]}  Bg4 {[%clk 0:02:55]} 11. Qg3 {[%clk 0:02:43]}  Nxb3 {[%clk 0:02:53]} 12. axb3 {[%clk 0:02:36]}  Bh5 {[%clk 0:02:54]} 13. d6 {[%clk 0:02:33]}  Ng4 {[%clk 0:02:53]} 14. h3 {[%clk 0:01:41]}  Be5 {[%clk 0:02:11]} 15. f4 {[%clk 0:01:40]}  Bxd4 {[%clk 0:01:45]} 16. hxg4 {[%clk 0:00:52]}  Bxe3 {[%clk 0:01:39]} 17. Qxe3 {[%clk 0:00:51]}  exd6 {[%clk 0:01:28]} 18. Qf3 {[%clk 0:00:38]}  Re8+ {[%clk 0:01:04]} 19. Kf1 {[%clk 0:00:38]}  Bxg4 {[%clk 0:00:56]} 20. Qxg4 {[%clk 0:00:36]}  Qf6 {[%clk 0:00:57]} 21. Rh3 {[%clk 0:00:32]}  d5 {[%clk 0:00:50]} 22. Rd1 {[%clk 0:00:26]}  d4 {[%clk 0:00:48]} 23. Nd5 {[%clk 0:00:24]}  Qa6+ {[%clk 0:00:46]} 24. Kg1 {[%clk 0:00:20]}  Rad8 {[%clk 0:00:45]} 25. Qg5 {[%clk 0:00:20]}  Rd6 {[%clk 0:00:26]} 26. Ne7+ {[%clk 0:00:20]}  Kf8 {[%clk 0:00:24]} 27. Rxh7 {[%clk 0:00:18]}  Rxe7 {[%clk 0:00:17]} 28. Rh8+ {[%clk 0:00:17]}  Kg7 {[%clk 0:00:17]} 29. Qxe7 {[%clk 0:00:15]}  Kxh8 {[%clk 0:00:17]} 30. Qf8+ {[%clk 0:00:15]}  Kh7 {[%clk 0:00:17]} 31. Qxf7+ {[%clk 0:00:15]}  Kh6 {[%clk 0:00:11]} 32. Kf2 {[%clk 0:00:13]}  Kh5 {[%clk 0:00:05]} 33. Rh1+ {[%clk 0:00:11]}  Kg4 {[%clk 0:00:05]} 34. g3 {[%clk 0:00:07]}  Rf6 {[%clk 0:00:01]} 35. Rh4+ {[%clk 0:00:06]}  Kf5 {[%clk 0:00:01]} 36. Qd5# {[%clk 0:00:06]} 1-0


[Site "https://www.chess.com"]

[Event "Titled Tuesday Blitz August 08 Late 2023"]
[White "Vaibhav Jayant Raut"]
[Black "D`Arruda, Ricardo D."]
[WhiteFideId "5089034"]
[BlackFideId "100692"]
[WhiteElo "2590"]
[BlackElo "2503"]
[Result "0-1"]
[Round "10"]
[TimeControl "180+1"]
[Date "2023.08.08"]
[WhiteClock "0:00:18"]
[BlackClock "0:01:02"]
[Board "59"]

1. e4 {[%clk 0:02:58]}  c5 {[%clk 0:02:59]} 2. Nf3 {[%clk 0:02:57]}  Nc6 {[%clk 0:02:59]} 3. Bb5 {[%clk 0:02:56]}  g6 {[%clk 0:02:58]} 4. O-O {[%clk 0:02:56]}  Bg7 {[%clk 0:02:58]} 5. c3 {[%clk 0:02:56]}  Nf6 {[%clk 0:02:58]} 6. Re1 {[%clk 0:02:56]}  O-O {[%clk 0:02:58]} 7. d4 {[%clk 0:02:52]}  cxd4 {[%clk 0:02:58]} 8. cxd4 {[%clk 0:02:53]}  d5 {[%clk 0:02:58]} 9. e5 {[%clk 0:02:52]}  Ne4 {[%clk 0:02:59]} 10. Nbd2 {[%clk 0:02:49]}  Bf5 {[%clk 0:02:57]} 11. Nb3 {[%clk 0:02:45]}  Qb6 {[%clk 0:02:49]} 12. Bxc6 {[%clk 0:02:41]}  bxc6 {[%clk 0:02:48]} 13. Be3 {[%clk 0:02:39]}  a5 {[%clk 0:02:42]} 14. Rc1 {[%clk 0:02:30]}  a4 {[%clk 0:02:40]} 15. Nc5 {[%clk 0:02:30]}  Nxc5 {[%clk 0:02:40]} 16. Rxc5 {[%clk 0:02:29]}  Qxb2 {[%clk 0:02:38]} 17. Rxc6 {[%clk 0:02:29]}  Qxa2 {[%clk 0:02:38]} 18. Nh4 {[%clk 0:02:27]}  Be6 {[%clk 0:02:30]} 19. Nf3 {[%clk 0:02:23]}  Rfc8 {[%clk 0:02:24]} 20. Qc1 {[%clk 0:02:22]}  a3 {[%clk 0:02:13]} 21. Ng5 {[%clk 0:02:20]}  Bd7 {[%clk 0:02:09]} 22. Rc7 {[%clk 0:02:16]}  h6 {[%clk 0:01:59]} 23. e6 {[%clk 0:02:12]}  fxe6 {[%clk 0:01:58]} 24. Nf3 {[%clk 0:02:02]}  Qb2 {[%clk 0:01:25]} 25. Qxb2 {[%clk 0:01:49]}  axb2 {[%clk 0:01:25]} 26. Rxc8+ {[%clk 0:01:36]}  Rxc8 {[%clk 0:01:22]} 27. Rb1 {[%clk 0:01:37]}  Rb8 {[%clk 0:01:22]} 28. Ne1 {[%clk 0:01:21]}  e5 {[%clk 0:01:22]} 29. Nd3 {[%clk 0:01:19]}  Rb3 {[%clk 0:01:08]} 30. Nc5 {[%clk 0:00:31]}  Bf5 {[%clk 0:01:07]} 31. Nxb3 {[%clk 0:00:28]}  Bxb1 {[%clk 0:01:07]} 32. dxe5 {[%clk 0:00:26]}  Bc2 {[%clk 0:01:05]} 33. Nd2 {[%clk 0:00:20]}  Bxe5 {[%clk 0:01:03]} 34. Bxh6 {[%clk 0:00:18]}  Bc3 {[%clk 0:01:02]} 0-1


[Site "https://www.chess.com"]

[Event "Titled Tuesday Blitz August 08 Late 2023"]
[White "Gasparyan, David"]
[Black "Berezin, Viktor"]
[WhiteFideId "13311980"]
[BlackFideId "14107872"]
[WhiteElo "2581"]
[BlackElo "2480"]
[Result "0-1"]
[Round "10"]
[TimeControl "180+1"]
[Date "2023.08.08"]
[WhiteClock "0:00:03"]
[BlackClock "0:00:10"]
[Board "60"]

1. e4 {[%clk 0:03:00]}  c6 {[%clk 0:02:48]} 2. Nc3 {[%clk 0:02:50]}  d5 {[%clk 0:02:47]} 3. Nf3 {[%clk 0:02:51]}  dxe4 {[%clk 0:02:47]} 4. Nxe4 {[%clk 0:02:51]}  Nf6 {[%clk 0:02:48]} 5. Qe2 {[%clk 0:02:48]}  Bf5 {[%clk 0:02:39]} 6. d3 {[%clk 0:02:39]}  e6 {[%clk 0:02:37]} 7. Bd2 {[%clk 0:02:36]}  Be7 {[%clk 0:02:35]} 8. Ng3 {[%clk 0:02:34]}  Bg6 {[%clk 0:02:35]} 9. h4 {[%clk 0:02:33]}  h6 {[%clk 0:02:34]} 10. Ne5 {[%clk 0:02:33]}  Bh7 {[%clk 0:02:33]} 11. h5 {[%clk 0:02:20]}  Nbd7 {[%clk 0:02:32]} 12. Nc4 {[%clk 0:02:08]}  O-O {[%clk 0:02:27]} 13. O-O-O {[%clk 0:01:54]}  b5 {[%clk 0:02:27]} 14. Na5 {[%clk 0:01:48]}  Qb6 {[%clk 0:02:23]} 15. Ne4 {[%clk 0:01:28]}  Nd5 {[%clk 0:02:22]} 16. Kb1 {[%clk 0:00:56]}  Nb4 {[%clk 0:01:54]} 17. Nb3 {[%clk 0:00:54]}  a5 {[%clk 0:01:55]} 18. Be3 {[%clk 0:00:52]}  Qc7 {[%clk 0:01:51]} 19. a3 {[%clk 0:00:44]}  Nd5 {[%clk 0:01:50]} 20. Nbc5 {[%clk 0:00:38]}  a4 {[%clk 0:01:42]} 21. Nxd7 {[%clk 0:00:31]}  Qxd7 {[%clk 0:01:40]} 22. Nc5 {[%clk 0:00:25]}  Qa7 {[%clk 0:01:21]} 23. Ne4 {[%clk 0:00:20]}  Nxe3 {[%clk 0:01:21]} 24. Qxe3 {[%clk 0:00:19]}  Qb8 {[%clk 0:01:15]} 25. c3 {[%clk 0:00:13]}  Qe5 {[%clk 0:01:11]} 26. f4 {[%clk 0:00:12]}  Qd5 {[%clk 0:01:09]} 27. Nd2 {[%clk 0:00:08]}  Bc5 {[%clk 0:01:05]} 28. Qf3 {[%clk 0:00:09]}  Qd7 {[%clk 0:01:01]} 29. Ka1 {[%clk 0:00:07]}  Be7 {[%clk 0:01:01]} 30. Ne4 {[%clk 0:00:06]}  c5 {[%clk 0:01:01]} 31. g4 {[%clk 0:00:05]}  b4 {[%clk 0:01:01]} 32. g5 {[%clk 0:00:04]}  bxc3 {[%clk 0:00:54]} 33. Nxc3 {[%clk 0:00:04]}  hxg5 {[%clk 0:00:48]} 34. fxg5 {[%clk 0:00:04]}  Bxg5 {[%clk 0:00:49]} 35. Bg2 {[%clk 0:00:04]}  Bf6 {[%clk 0:00:48]} 36. h6 {[%clk 0:00:04]}  Rab8 {[%clk 0:00:41]} 37. hxg7 {[%clk 0:00:03]}  Bxg7 {[%clk 0:00:37]} 38. Rxh7 {[%clk 0:00:03]}  Kxh7 {[%clk 0:00:33]} 39. Rh1+ {[%clk 0:00:03]}  Kg8 {[%clk 0:00:33]} 40. Qh5 {[%clk 0:00:03]}  f5 {[%clk 0:00:29]} 41. Qh7+ {[%clk 0:00:03]}  Kf7 {[%clk 0:00:30]} 42. Bf3 {[%clk 0:00:03]}  Rh8 {[%clk 0:00:23]} 43. Bh5+ {[%clk 0:00:03]}  Kf8 {[%clk 0:00:22]} 44. Qg6 {[%clk 0:00:04]}  Rh6 {[%clk 0:00:22]} 45. Qg5 {[%clk 0:00:04]}  Rxb2 {[%clk 0:00:11]} 46. Kxb2 {[%clk 0:00:04]}  Qb7+ {[%clk 0:00:11]} 47. Kc2 {[%clk 0:00:04]}  Qb3+ {[%clk 0:00:11]} 48. Kd2 {[%clk 0:00:04]}  Qxc3+ {[%clk 0:00:11]} 49. Ke2 {[%clk 0:00:05]}  Qe5+ {[%clk 0:00:11]} 50. Kd2 {[%clk 0:00:05]}  Qb2+ {[%clk 0:00:09]} 51. Ke3 {[%clk 0:00:04]}  Bd4+ {[%clk 0:00:09]} 52. Kf4 {[%clk 0:00:04]}  Qf2+ {[%clk 0:00:09]} 53. Bf3 {[%clk 0:00:05]}  Qe3+ {[%clk 0:00:09]} 54. Kg3 {[%clk 0:00:05]}  Qxg5+ {[%clk 0:00:10]} 55. Bg4 {[%clk 0:00:03]}  Qxg4# {[%clk 0:00:10]} 0-1


[Site "https://www.chess.com"]

[Event "Titled Tuesday Blitz August 08 Late 2023"]
[White "Adan Bermudez, Sergio"]
[Black "Andrews, Todd"]
[WhiteFideId "2292726"]
[BlackFideId "2012456"]
[WhiteElo "2556"]
[BlackElo "2390"]
[Result "1-0"]
[Round "10"]
[TimeControl "180+1"]
[Date "2023.08.08"]
[WhiteClock "0:00:54"]
[BlackClock "0:00:13"]
[Board "63"]

1. c4 {[%clk 0:02:55]}  e5 {[%clk 0:02:47]} 2. Nc3 {[%clk 0:02:56]}  Nc6 {[%clk 0:02:47]} 3. Nf3 {[%clk 0:02:54]}  Nf6 {[%clk 0:02:46]} 4. e3 {[%clk 0:02:54]}  Bb4 {[%clk 0:02:44]} 5. Qc2 {[%clk 0:02:54]}  O-O {[%clk 0:02:43]} 6. Nd5 {[%clk 0:02:53]}  Bc5 {[%clk 0:02:37]} 7. Ng5 {[%clk 0:02:50]}  g6 {[%clk 0:02:33]} 8. Nxf6+ {[%clk 0:02:49]}  Qxf6 {[%clk 0:02:33]} 9. Ne4 {[%clk 0:02:50]}  Qe7 {[%clk 0:02:33]} 10. a3 {[%clk 0:02:51]}  a5 {[%clk 0:02:32]} 11. h4 {[%clk 0:02:50]}  f5 {[%clk 0:02:24]} 12. Nc3 {[%clk 0:02:49]}  d6 {[%clk 0:02:21]} 13. Nd5 {[%clk 0:02:24]}  Qf7 {[%clk 0:02:16]} 14. h5 {[%clk 0:02:16]}  g5 {[%clk 0:02:14]} 15. h6 {[%clk 0:02:15]}  Be6 {[%clk 0:02:07]} 16. b3 {[%clk 0:02:15]}  Bxd5 {[%clk 0:01:59]} 17. cxd5 {[%clk 0:02:14]}  Ne7 {[%clk 0:01:59]} 18. Bc4 {[%clk 0:02:08]}  Rab8 {[%clk 0:01:41]} 19. a4 {[%clk 0:02:07]}  Rfc8 {[%clk 0:01:26]} 20. Bb2 {[%clk 0:02:05]}  Ng6 {[%clk 0:01:24]} 21. Rh5 {[%clk 0:02:00]}  Qe7 {[%clk 0:01:16]} 22. Qxf5 {[%clk 0:01:56]}  Rf8 {[%clk 0:01:09]} 23. Qe6+ {[%clk 0:01:46]}  Kh8 {[%clk 0:00:55]} 24. Qxe7 {[%clk 0:01:46]}  Nxe7 {[%clk 0:00:55]} 25. Rxg5 {[%clk 0:01:47]}  Nf5 {[%clk 0:00:51]} 26. f4 {[%clk 0:01:42]}  Rbe8 {[%clk 0:00:45]} 27. fxe5 {[%clk 0:01:37]}  dxe5 {[%clk 0:00:46]} 28. g4 {[%clk 0:01:36]}  Nxh6 {[%clk 0:00:19]} 29. Rxe5 {[%clk 0:01:16]}  Rxe5 {[%clk 0:00:19]} 30. Bxe5+ {[%clk 0:01:15]}  Kg8 {[%clk 0:00:19]} 31. d6+ {[%clk 0:01:16]}  Nf7 {[%clk 0:00:19]} 32. dxc7 {[%clk 0:01:12]}  Re8 {[%clk 0:00:18]} 33. d4 {[%clk 0:01:07]}  Kf8 {[%clk 0:00:17]} 34. Bxf7 {[%clk 0:01:02]}  Bb4+ {[%clk 0:00:18]} 35. Ke2 {[%clk 0:01:00]}  Kxf7 {[%clk 0:00:18]} 36. Rf1+ {[%clk 0:00:55]}  Ke6 {[%clk 0:00:18]} 37. Rh1 {[%clk 0:00:54]}  Bd6 {[%clk 0:00:17]} 38. Rh6+ {[%clk 0:00:53]}  Kd7 {[%clk 0:00:16]} 39. Rxd6+ {[%clk 0:00:52]}  Kxc7 {[%clk 0:00:16]} 40. Re6+ {[%clk 0:00:53]}  Kd7 {[%clk 0:00:17]} 41. Rxe8 {[%clk 0:00:53]}  Kxe8 {[%clk 0:00:18]} 42. e4 {[%clk 0:00:53]}  Kd7 {[%clk 0:00:13]} 43. d5 {[%clk 0:00:54]} 1-0


[Site "https://www.chess.com"]

[Event "Titled Tuesday Blitz August 08 Late 2023"]
[White "UgarteCesar"]
[Black "Santos Flores, Alberto"]
[BlackFideId "3601234"]
[WhiteElo "2346"]
[BlackElo "2552"]
[Result "1/2-1/2"]
[Round "10"]
[TimeControl "180+1"]
[Date "2023.08.08"]
[WhiteClock "0:00:18"]
[BlackClock "0:00:15"]
[Board "65"]

1. d4 {[%clk 0:02:57]}  d5 {[%clk 0:02:58]} 2. Bf4 {[%clk 0:02:58]}  Nf6 {[%clk 0:02:57]} 3. Nf3 {[%clk 0:02:58]}  c5 {[%clk 0:02:55]} 4. e3 {[%clk 0:02:58]}  Nc6 {[%clk 0:02:55]} 5. c3 {[%clk 0:02:58]}  Qb6 {[%clk 0:02:55]} 6. Qb3 {[%clk 0:02:58]}  c4 {[%clk 0:02:56]} 7. Qc2 {[%clk 0:02:58]}  Bf5 {[%clk 0:02:56]} 8. Qc1 {[%clk 0:02:59]}  e6 {[%clk 0:02:56]} 9. Nbd2 {[%clk 0:02:59]}  h6 {[%clk 0:02:54]} 10. h3 {[%clk 0:02:59]}  Qd8 {[%clk 0:02:53]} 11. g4 {[%clk 0:03:00]}  Bh7 {[%clk 0:02:53]} 12. Bg2 {[%clk 0:03:00]}  Be7 {[%clk 0:02:48]} 13. O-O {[%clk 0:03:00]}  O-O {[%clk 0:02:48]} 14. b3 {[%clk 0:02:57]}  b5 {[%clk 0:02:48]} 15. a4 {[%clk 0:02:56]}  a6 {[%clk 0:02:48]} 16. axb5 {[%clk 0:02:55]}  axb5 {[%clk 0:02:48]} 17. Rxa8 {[%clk 0:02:56]}  Qxa8 {[%clk 0:02:47]} 18. bxc4 {[%clk 0:02:57]}  bxc4 {[%clk 0:02:47]} 19. Ne5 {[%clk 0:02:57]}  Nxe5 {[%clk 0:02:45]} 20. Bxe5 {[%clk 0:02:57]}  Qa4 {[%clk 0:02:38]} 21. Re1 {[%clk 0:02:42]}  Ra8 {[%clk 0:02:33]} 22. Bxf6 {[%clk 0:02:39]}  Bxf6 {[%clk 0:02:32]} 23. e4 {[%clk 0:02:40]}  Qb5 {[%clk 0:02:09]} 24. exd5 {[%clk 0:02:36]}  exd5 {[%clk 0:02:09]} 25. Nf3 {[%clk 0:02:32]}  Be4 {[%clk 0:02:03]} 26. g5 {[%clk 0:02:11]}  hxg5 {[%clk 0:01:49]} 27. Nxg5 {[%clk 0:02:12]}  Bxg2 {[%clk 0:01:39]} 28. Kxg2 {[%clk 0:02:11]}  Re8 {[%clk 0:01:36]} 29. Nf3 {[%clk 0:02:01]}  Rxe1 {[%clk 0:01:22]} 30. Qxe1 {[%clk 0:02:02]}  Qd7 {[%clk 0:01:20]} 31. Qe3 {[%clk 0:01:56]}  g6 {[%clk 0:01:18]} 32. Qf4 {[%clk 0:01:51]}  Kg7 {[%clk 0:01:18]} 33. Ne5 {[%clk 0:01:48]}  Qe6 {[%clk 0:00:57]} 34. Ng4 {[%clk 0:01:36]}  Be7 {[%clk 0:00:51]} 35. Qe5+ {[%clk 0:01:18]}  Qxe5 {[%clk 0:00:51]} 36. Nxe5 {[%clk 0:01:19]}  Ba3 {[%clk 0:00:42]} 37. Nd7 {[%clk 0:00:49]}  Bb2 {[%clk 0:00:41]} 38. Nb6 {[%clk 0:00:49]}  Bxc3 {[%clk 0:00:41]} 39. Nxd5 {[%clk 0:00:49]}  Bxd4 {[%clk 0:00:41]} 40. Kf3 {[%clk 0:00:48]}  f5 {[%clk 0:00:40]} 41. Ke2 {[%clk 0:00:47]}  Kh6 {[%clk 0:00:36]} 42. Nf4 {[%clk 0:00:37]}  Be5 {[%clk 0:00:29]} 43. Ne6 {[%clk 0:00:32]}  Kh5 {[%clk 0:00:26]} 44. f4 {[%clk 0:00:29]}  Bd6 {[%clk 0:00:23]} 45. Ke3 {[%clk 0:00:24]}  Kh4 {[%clk 0:00:22]} 46. Kd4 {[%clk 0:00:23]}  Kxh3 {[%clk 0:00:22]} 47. Kxc4 {[%clk 0:00:23]}  Kg3 {[%clk 0:00:22]} 48. Kd5 {[%clk 0:00:24]}  Bxf4 {[%clk 0:00:22]} 49. Nf8 {[%clk 0:00:22]}  g5 {[%clk 0:00:21]} 50. Ke6 {[%clk 0:00:21]}  Kg4 {[%clk 0:00:20]} 51. Nh7 {[%clk 0:00:20]}  Bc1 {[%clk 0:00:20]} 52. Nf6+ {[%clk 0:00:20]}  Kf4 {[%clk 0:00:20]} 53. Nd5+ {[%clk 0:00:20]}  Ke4 {[%clk 0:00:20]} 54. Nf6+ {[%clk 0:00:20]}  Kf4 {[%clk 0:00:19]} 55. Nd5+ {[%clk 0:00:20]}  Kg4 {[%clk 0:00:19]} 56. Nf6+ {[%clk 0:00:20]}  Kh4 {[%clk 0:00:19]} 57. Kxf5 {[%clk 0:00:20]}  Bb2 {[%clk 0:00:19]} 58. Ng4 {[%clk 0:00:20]}  Bc3 {[%clk 0:00:19]} 59. Nf2 {[%clk 0:00:17]}  Be1 {[%clk 0:00:18]} 60. Ne4 {[%clk 0:00:17]}  g4 {[%clk 0:00:17]} 61. Kf4 {[%clk 0:00:18]}  g3 {[%clk 0:00:16]} 62. Kf3 {[%clk 0:00:18]}  Kh3 {[%clk 0:00:15]} 63. Nxg3 {[%clk 0:00:18]} 1/2-1/2


[Site "https://www.chess.com"]